bitfinex/quotes_SOLUSD_20250204
["timestamp","ask_amount","ask_price","bid_price","bid_amount"]
[1738675687513,23.38444397,212.45,212.4,0.03]
[1738675687736,4.7068,212.46,212.4,0.03]
[1738675687946,6.0604,212.49,212.44,23.38444397]
[1738675688256,6.0604,212.49,212.45,0.25098]
[1738675688929,1.5128,212.52,212.47,23.38444397]
[1738675689432,23.38444397,212.51,212.43,23.38444397]
[1738675689646,6.2183,212.52,212.45,23.38444397]
[1738675689647,29.60274397,212.52,212.45,23.38444397]
[1738675689936,29.60274397,212.52,212.47,23.38444397]
[1738675689937,1.5128,212.52,212.47,23.38444397]
[1738675690436,1.5128,212.52,212.48,0.25098]
[1738675690640,1.5128,212.52,212.48,23.63542397]
[1738675691005,6.3009,212.54,212.5,0.25098]
[1738675691422,11.0059,212.54,212.43,0.12549]
[1738675691732,23.38444397,212.51,212.43,23.38444397]
[1738675691945,158.18444397,212.53,212.47,0.25098]
[1738675692445,23.38444397,212.55,212.48,23.38444397]
[1738675692742,23.38444397,212.55,212.49,0.37647]
[1738675694257,28.97154929,212.55,212.49,0.25098]
[1738675694565,106.28444397,212.57,212.51,0.25098]
[1738675694864,134.8,212.59,212.54,0.25098]
[1738675695036,134.8,212.6,212.54,0.25098]
[1738675695824,134.8,212.6,212.53,23.38444397]
[1738675696058,24.26656924,212.59,212.51,23.38444397]
[1738675696230,23.38444397,212.59,212.51,23.38444397]
[1738675696431,158.18444397,212.6,212.54,0.25098]
[1738675696761,7.8236,212.62,212.6,0.25098]
[1738675696927,0.063,212.63,212.6,23.63542397]
[1738675698344,0.063,212.63,212.62,0.37647]
[1738675698660,0.063,212.63,212.62,23.88640397]
[1738675699776,0.063,212.63,212.62,23.63542397]
[1738675700083,0.063,212.63,212.62,0.25098]
[1738675701983,0.063,212.63,212.62,23.88640397]
[1738675702148,0.063,212.63,212.62,37.2982525]
[1738675702546,0.063,212.63,212.62,23.76091397]
[1738675702741,0.063,212.63,212.6,23.38444397]
[1738675702973,0.063,212.63,212.56,23.38444397]
[1738675703176,23.38444397,212.62,212.54,23.38444397]
[1738675703548,23.38444397,212.62,212.55,0.37647]
[1738675704163,23.38444397,212.6,212.55,0.25098]
[1738675704680,23.38444397,212.6,212.54,0.25098]
[1738675705382,23.38444397,212.6,212.54,0.28098]
[1738675705560,28.08814397,212.6,212.54,0.28098]
[1738675706574,162.88814397,212.6,212.54,0.28098]
[1738675707102,23.38444397,212.56,212.54,0.03]
[1738675707300,134.8,212.55,212.54,0.03]
[1738675707800,134.8,212.6,212.55,0.25098]
[1738675710400,166.25104397,212.62,212.56,0.12549]
[1738675710601,8.0666,212.62,212.57,0.25098]
[1738675710899,31.45104397,212.62,212.57,0.25098]
[1738675711966,8.0666,212.62,212.56,23.38444397]
[1738675712166,0.063,212.62,212.61,0.25098]
[1738675713196,0.063,212.62,212.58,23.38444397]
[1738675713590,0.063,212.62,212.59,0.50196]
[1738675713775,0.063,212.62,212.59,0.25098]
[1738675714691,0.063,212.62,212.56,23.38444397]
[1738675714873,0.063,212.62,212.54,0.03]
[1738675714874,23.44744397,212.62,212.54,23.41444397]
[1738675716797,23.44744397,212.62,212.55,0.50196]
[1738675717697,28.15064397,212.62,212.55,0.25098]
[1738675718186,162.95064397,212.62,212.55,0.28098]
[1738675718572,134.863,212.62,212.57,0.25098]
[1738675718777,134.863,212.62,212.59,0.25098]
[1738675718991,134.863,212.62,212.61,0.25098]
[1738675719299,0.063,212.62,212.61,0.25098]
[1738675719602,0.063,212.62,212.61,0.37647]
[1738675719896,0.063,212.62,212.61,0.50196]
[1738675720777,0.063,212.62,212.61,0.25098]
[1738675721311,0.063,212.62,212.59,0.25098]
[1738675722885,23.38444397,212.6,212.55,0.03]
[1738675725383,162.95074397,212.62,212.55,0.28098]
[1738675725583,134.863,212.62,212.58,23.50993397]
[1738675725789,134.863,212.62,212.61,0.25098]
[1738675726024,0.063,212.62,212.61,0.37647]
[1738675726396,0.063,212.62,212.61,0.50196]
[1738675728926,0.063,212.62,212.61,0.37647]
[1738675729705,0.063,212.62,212.58,23.38444397]
[1738675730300,0.063,212.62,212.59,0.25098]
[1738675732021,0.063,212.62,212.58,0.12549]
[1738675732524,0.063,212.62,212.57,0.25098]
[1738675732735,23.38444397,212.6,212.55,0.03]
[1738675733516,23.38444397,212.58,212.55,0.03]
[1738675733724,23.38444397,212.6,212.55,0.03]
[1738675734809,28.08824397,212.6,212.55,0.03]
[1738675735531,23.38444397,212.56,212.55,0.03]
[1738675735730,134.8,212.57,212.55,0.03]
[1738675736815,29.96254397,212.58,212.55,0.03]
[1738675736816,238.58221763,212.56,212.55,0.03]
[1738675737009,261.08444397,212.56,212.55,0.03]
[1738675737817,43.38444397,212.56,212.55,0.03]
[1738675738013,58.67875758,212.56,212.55,0.03]
[1738675738214,58.67875758,212.56,212.54,0.03]
[1738675738215,13.41184853,212.55,212.54,0.03]
[1738675738418,14.98104853,212.55,212.54,0.03]
[1738675739225,19.68574853,212.55,212.54,0.03]
[1738675739729,20.0,212.51,212.47,0.03]
[1738675740026,23.38444397,212.48,212.47,0.03]
[1738675740227,24.26707743,212.48,212.47,0.03]
[1738675740805,30.46897743,212.48,212.47,0.03]
[1738675741407,48.58712596,212.48,212.47,0.03]
[1738675741912,50.12982596,212.48,212.47,0.03]
[1738675742332,23.38444397,212.41,212.33,0.03]
[1738675742628,62.0638069,212.41,212.33,0.03]
[1738675742835,23.38444397,212.36,212.33,0.03]
[1738675743011,23.38444397,212.38,212.33,0.15549]
[1738675743333,4.7087,212.37,212.33,0.03]
[1738675743516,23.38444397,212.36,212.33,0.03]
[1738675743903,23.38444397,212.38,212.33,0.03]
[1738675744638,23.38444397,212.4,212.33,0.15549]
[1738675744935,134.8,212.43,212.37,0.25098]
[1738675745527,23.38444397,212.42,212.37,0.25098]
[1738675746034,24.45706958,212.48,212.38,23.38444397]
[1738675746035,158.18444397,212.46,212.38,23.38444397]
[1738675746210,134.8,212.48,212.43,23.38444397]
[1738675746408,134.8,212.48,212.45,0.25098]
[1738675746629,134.8,212.48,212.45,23.63542397]
[1738675746835,134.8,212.48,212.44,23.38444397]
[1738675747921,134.8,212.48,212.43,0.25098]
[1738675748123,162.89074397,212.48,212.4,23.38444397]
[1738675748820,162.89074397,212.48,212.41,0.25098]
[1738675749233,23.38444397,212.46,212.41,0.25098]
[1738675750252,162.89074397,212.48,212.41,0.25098]
[1738675750627,134.8,212.48,212.42,0.25098]
[1738675750944,110.99054397,212.49,212.42,0.25098]
[1738675751142,106.28444397,212.49,212.42,0.25098]
[1738675752238,110.99054397,212.49,212.42,0.25098]
[1738675752436,23.38444397,212.47,212.39,23.38444397]
[1738675752830,23.38444397,212.47,212.4,0.37647]
[1738675753140,110.99054397,212.49,212.42,0.25098]
[1738675753352,23.38444397,212.47,212.39,23.38444397]
[1738675753519,23.38444397,212.45,212.37,23.38444397]
[1738675754032,23.38444397,212.45,212.38,0.37647]
[1738675754233,23.38444397,212.45,212.38,0.25098]
[1738675754550,217.7,212.48,212.35,23.38444397]
[1738675754551,23.38444397,212.43,212.35,23.38444397]
[1738675754923,23.38444397,212.41,212.33,23.41444397]
[1738675755618,158.18444397,212.43,212.36,0.25098]
[1738675755820,134.8,212.43,212.4,0.03]
[1738675756829,134.8,212.43,212.4,0.28098]
[1738675757035,23.38444397,212.47,212.4,0.28098]
[1738675757432,0.063,212.49,212.44,0.25098]
[1738675758252,0.063,212.49,212.43,0.12549]
[1738675759027,0.063,212.49,212.44,23.63542397]
[1738675759235,0.063,212.49,212.48,23.63542397]
[1738675759746,0.063,212.49,212.48,23.88640397]
[1738675760455,0.063,212.49,212.48,37.2982525]
[1738675760850,0.063,212.49,212.48,23.88640397]
[1738675762035,0.063,212.49,212.48,37.2982525]
[1738675762236,0.063,212.49,212.48,37.85965694]
[1738675762841,0.063,212.49,212.48,23.88640397]
[1738675764363,0.063,212.49,212.48,23.63542397]
[1738675764565,0.063,212.49,212.46,23.38444397]
[1738675764934,0.063,212.49,212.44,23.38444397]
[1738675765133,0.063,212.49,212.45,0.37647]
[1738675765657,0.063,212.49,212.45,23.76091397]
[1738675768277,0.063,212.49,212.45,23.63542397]
[1738675769282,0.063,212.49,212.43,0.12549]
[1738675769283,0.063,212.49,212.48,23.88640397]
[1738675769584,0.063,212.49,212.48,37.2982525]
[1738675769882,0.063,212.49,212.48,37.85978621]
[1738675770244,0.063,212.49,212.48,37.2982525]
[1738675770905,0.063,212.49,212.48,23.76091397]
[1738675771549,0.063,212.49,212.48,37.2982525]
[1738675771755,0.063,212.49,212.48,37.85948929]
[1738675771954,0.063,212.49,212.48,37.2982525]
[1738675772489,0.063,212.49,212.48,37.85944309]
[1738675773063,241.08444397,212.6,212.55,0.25098]
[1738675773364,106.28444397,212.6,212.55,0.25098]
[1738675773793,110.98814397,212.6,212.54,0.25098]
[1738675774092,106.28444397,212.6,212.54,0.25098]
[1738675774403,110.98804397,212.6,212.54,0.25098]
[1738675774573,23.38444397,212.58,212.5,23.38444397]
[1738675774781,23.38444397,212.56,212.48,23.38444397]
[1738675774991,28.08914397,212.56,212.48,23.38444397]
[1738675775201,28.08914397,212.56,212.41,23.38444397]
[1738675775202,23.38444397,212.54,212.46,23.38444397]
[1738675775600,23.38444397,212.54,212.47,0.25098]
[1738675775973,134.8,212.58,212.53,0.25098]
[1738675776296,134.8,212.58,212.54,23.38444397]
[1738675777680,134.8,212.58,212.53,0.25098]
[1738675778589,0.063,212.62,212.57,0.25098]
[1738675778771,0.063,212.62,212.59,23.38444397]
[1738675779068,0.063,212.62,212.57,23.63542397]
[1738675780279,0.063,212.62,212.61,0.25098]
[1738675780876,0.063,212.62,212.6,0.37647]
[1738675781771,0.063,212.62,212.6,0.25098]
[1738675781989,0.063,212.62,212.57,23.38444397]
[1738675782200,23.38444397,212.61,212.53,23.38444397]
[1738675783196,0.063,212.62,212.56,0.37647]
[1738675783583,0.063,212.62,212.59,23.50993397]
[1738675783791,0.063,212.62,212.61,23.76091397]
[1738675784003,0.063,212.62,212.61,23.63542397]
[1738675784623,0.063,212.62,212.61,23.88640397]
[1738675786403,0.063,212.62,212.57,23.38444397]
[1738675786582,23.44744397,212.62,212.55,23.38444397]
[1738675787322,23.44744397,212.62,212.56,0.25098]
[1738675787685,28.15074397,212.62,212.56,0.25098]
[1738675787917,23.38444397,212.61,212.55,0.25098]
[1738675788102,23.38444397,212.61,212.55,0.37647]
[1738675788706,23.38444397,212.61,212.53,23.38444397]
[1738675788906,23.38444397,212.59,212.51,23.38444397]
[1738675789109,23.38444397,212.57,212.49,23.38444397]
[1738675789297,23.38444397,212.57,212.47,23.38444397]
[1738675789298,23.38444397,212.55,212.47,23.38444397]
[1738675790593,28.08924397,212.55,212.47,23.38444397]
[1738675791508,28.08924397,212.55,212.48,0.25098]
[1738675791805,134.8,212.56,212.49,0.12549]
[1738675792014,134.8,212.56,212.5,23.38444397]
[1738675792801,139.5045,212.56,212.5,23.38444397]
[1738675793004,134.8,212.56,212.5,23.38444397]
[1738675793203,134.8,212.56,212.5,0.25098]
[1738675793512,139.5045,212.56,212.49,23.38444397]
[1738675793716,162.88894397,212.56,212.48,23.38444397]
[1738675793914,162.88894397,212.56,212.47,0.03]
[1738675793915,139.5045,212.56,212.5,23.38444397]
[1738675794315,134.8,212.59,212.55,23.38444397]
[1738675794515,134.8,212.59,212.57,23.38444397]
[1738675794714,6.0299,212.61,212.56,23.38444397]
[1738675795613,10.7333,212.61,212.55,23.38444397]
[1738675796114,23.38444397,212.6,212.52,23.38444397]
[1738675796316,23.38444397,212.58,212.5,23.38444397]
[1738675796523,23.38444397,212.56,212.48,23.38444397]
[1738675796701,4.7047,212.55,212.48,23.38444397]
[1738675796900,134.8,212.54,212.48,23.38444397]
[1738675797219,134.8,212.54,212.49,23.88640397]
[1738675797399,134.8,212.54,212.49,0.50196]
[1738675797815,134.8,212.54,212.5,23.38444397]
[1738675798917,139.505,212.54,212.48,23.38444397]
[1738675799108,134.8,212.54,212.49,23.38444397]
[1738675799299,134.8,212.54,212.5,0.37647]
[1738675800223,134.8,212.54,212.51,23.38444397]
[1738675800517,134.8,212.54,212.47,23.41444397]
[1738675800820,28.08974397,212.53,212.47,23.41444397]
[1738675800994,4.7053,212.53,212.47,23.41444397]
[1738675801196,28.08974397,212.53,212.47,0.03]
[1738675801418,134.8,212.52,212.47,0.03]
[1738675802132,1.6363,212.5,212.47,0.03]
[1738675802295,241.96705025,212.49,212.47,0.03]
[1738675802491,241.08444397,212.49,212.47,0.03]
[1738675802696,231.11184853,212.48,212.47,0.03]
[1738675802894,245.79074397,212.48,212.47,0.03]
[1738675803695,41.5025925,212.48,212.47,0.03]
[1738675803898,42.3853855,212.48,212.47,0.03]
[1738675804105,23.38444397,212.48,212.47,0.03]
[1738675805920,41.5025925,212.48,212.47,0.03]
[1738675806220,20.0,212.43,212.4,0.03]
[1738675806597,23.38444397,212.46,212.4,0.03]
[1738675806797,4.76,212.51,212.45,23.38444397]
[1738675806798,8.0038,212.5,212.45,23.38444397]
[1738675807015,8.0038,212.5,212.44,23.38444397]
[1738675807223,8.0038,212.5,212.45,23.38444397]
[1738675807433,0.88254628,212.49,212.44,23.38444397]
[1738675807627,8.0038,212.5,212.45,23.38444397]
[1738675807929,12.5621,212.55,212.49,23.38444397]
[1738675808114,35.94654397,212.55,212.47,23.38444397]
[1738675808302,12.5621,212.55,212.48,23.38444397]
[1738675808933,36.8288841,212.55,212.47,23.38444397]
[1738675809107,31.24184397,212.55,212.48,0.37647]
[1738675809424,7.8574,212.55,212.49,23.38444397]
[1738675809611,12.5622,212.55,212.49,23.38444397]
[1738675809811,12.5622,212.55,212.48,0.37647]
[1738675809812,7.8574,212.55,212.51,23.38444397]
[1738675810018,28.08854397,212.58,212.51,23.38444397]
[1738675810334,134.8,212.56,212.51,23.38444397]
[1738675810837,134.8,212.56,212.52,23.38444397]
[1738675811005,162.88834397,212.59,212.52,23.38444397]
[1738675811205,158.18444397,212.59,212.52,23.38444397]
[1738675812018,142.7713,212.6,212.56,23.38444397]
[1738675812226,1.5518,212.6,212.56,23.38444397]
[1738675812944,0.063,212.62,212.59,23.38444397]
[1738675813125,0.063,212.62,212.6,23.38444397]
[1738675813307,0.063,212.62,212.59,23.38444397]
[1738675814047,0.063,212.62,212.58,23.38444397]
[1738675814208,0.063,212.62,212.57,23.38444397]
[1738675814637,0.063,212.62,212.58,23.38444397]
[1738675815209,0.063,212.62,212.58,23.76091397]
[1738675815414,0.063,212.62,212.59,23.38444397]
[1738675816110,0.063,212.62,212.61,23.38444397]
[1738675816405,0.063,212.62,212.59,23.38444397]
[1738675816619,0.063,212.62,212.61,23.38444397]
[1738675816831,0.063,212.62,212.61,23.76091397]
[1738675817232,0.063,212.63,212.62,0.37647]
[1738675817437,0.063,212.63,212.62,67.70552049]
[1738675817636,0.063,212.64,212.63,0.12549]
[1738675817829,0.063,212.69,212.67,0.12549]
[1738675818014,0.063,212.69,212.68,23.50993397]
[1738675818211,0.063,212.69,212.68,23.88640397]
[1738675819035,0.063,212.69,212.68,23.76091397]
[1738675819332,0.063,212.7,212.69,0.50196]
[1738675819532,0.063,212.7,212.69,24.44592345]
[1738675819941,0.0006,212.84,212.83,32.0]
[1738675820146,134.8,213.04,212.86,1.0]
[1738675820343,134.8,213.07,212.94,46.76888794]
[1738675820518,102.11546142,213.08,212.96,0.50196]
[1738675820717,102.11546142,213.08,212.99,20.0]
[1738675820943,102.11546142,213.08,213.04,23.38444397]
[1738675821242,102.11546142,213.08,213.04,23.76091397]
[1738675821443,0.88002349,213.07,213.0,23.38444397]
[1738675821742,0.88024554,213.07,213.0,23.38444397]
[1738675822243,23.38444397,213.05,213.01,39.02934408]
[1738675822441,0.88024554,213.07,213.01,39.02934408]
[1738675822442,134.8,213.06,213.01,39.02934408]
[1738675822647,23.38444397,213.03,213.01,39.02934408]
[1738675823034,23.38444397,213.03,213.02,6.28786034]
[1738675823347,41.4903925,213.03,213.02,6.28786034]
[1738675823844,43.49632729,213.03,213.02,4.62126034]
[1738675824018,1.12549,213.01,212.87,1.0]
[1738675824219,23.38444397,212.9,212.87,1.0]
[1738675824447,23.38444397,212.92,212.87,1.0]
[1738675824846,125.59706907,212.98,212.87,1.0]
[1738675825046,1.12549,212.99,212.87,1.0]
[1738675825047,23.38444397,212.93,212.87,1.0]
[1738675825229,23.38444397,212.91,212.87,1.0]
[1738675825432,23.38444397,212.91,212.88,12.53265849]
[1738675825840,23.38444397,212.93,212.88,12.53265849]
[1738675826043,23.38444397,212.91,212.88,12.53265849]
[1738675826323,23.38444397,212.9,212.88,12.53265849]
[1738675826523,20.0,212.93,212.89,23.49415772]
[1738675826825,107.12376271,212.96,212.89,36.02681621]
[1738675826826,13.41184853,212.94,212.89,36.02681621]
[1738675827127,83.73931874,212.96,212.89,36.02681621]
[1738675827347,44.25695541,213.0,212.92,62.05143399]
[1738675827528,44.25695541,213.0,212.92,161.36496591]
[1738675827928,4.6951,212.99,212.93,37.83505541]
[1738675828539,6.4219,213.0,212.94,37.83505541]
[1738675828742,4.6947,213.01,212.94,38.83505541]
[1738675828947,20.0,212.99,212.94,38.83505541]
[1738675829125,4.6942,213.03,212.97,37.83505541]
[1738675829327,88.43351874,213.03,212.99,37.83505541]
[1738675829631,88.43321874,213.05,212.99,37.83505541]
[1738675830335,13.41184853,213.04,212.97,38.83505541]
[1738675830848,20.0,212.98,212.92,99.31353192]
[1738675831059,37.83505541,212.97,212.92,99.31353192]
[1738675831242,57.83505541,212.97,212.92,99.31353192]
[1738675831639,4.7587,212.96,212.92,99.31353192]
[1738675832651,4.7587,212.96,212.92,100.31353192]
[1738675832858,0.063,212.96,212.95,37.83505541]
[1738675833157,0.063,212.96,212.95,38.21152541]
[1738675833561,0.063,212.96,212.95,37.83505541]
[1738675836153,0.063,212.96,212.93,37.83505541]
[1738675836347,0.063,212.96,212.94,1.0]
[1738675836550,0.063,212.96,212.93,37.83505541]
[1738675836746,0.063,212.96,212.94,1.0]
[1738675837929,0.063,212.96,212.92,99.31353192]
[1738675838173,20.063,212.96,212.92,99.31353192]
[1738675838758,0.063,212.96,212.95,37.83505541]
[1738675839066,0.063,212.96,212.95,38.83505541]
[1738675839556,0.063,212.96,212.95,38.96054541]
[1738675839869,0.063,212.96,212.95,43.90742541]
[1738675840436,0.063,212.96,212.95,39.21152541]
[1738675840850,0.063,212.96,212.95,38.83505541]
[1738675841133,0.063,212.96,212.93,38.83505541]
[1738675841435,0.063,212.96,212.92,99.31353192]
[1738675841436,20.0,212.95,212.92,99.31353192]
[1738675841976,4.7587,212.96,212.92,99.31353192]
[1738675841977,0.063,212.96,212.95,1.0]
[1738675842144,0.063,212.96,212.95,38.83505541]
[1738675842363,0.063,212.96,212.92,99.31353192]
[1738675843490,4.6963,212.93,212.92,99.31353192]
[1738675844478,18.23363853,212.93,212.92,99.31353192]
[1738675844694,25.16630853,212.93,212.92,33.22494185]
[1738675844877,13.41184853,212.88,212.79,1.0]
[1738675845078,37.83505541,212.85,212.79,1.0]
[1738675845288,37.83505541,212.87,212.79,1.0]
[1738675845467,20.0,212.84,212.79,1.0]
[1738675846005,4.6985,212.83,212.79,1.0]
[1738675846165,62.53355541,212.83,212.77,1.0]
[1738675846368,62.53355541,212.83,212.76,37.83505541]
[1738675847195,37.83505541,212.81,212.74,38.83505541]
[1738675847367,37.83505541,212.79,212.72,38.83505541]
[1738675847563,13.41184853,212.78,212.7,38.83505541]
[1738675848001,37.83505541,212.79,212.7,38.83505541]
[1738675848367,4.7003,212.76,212.72,1.0]
[1738675848589,4.7003,212.76,212.7,24.31356603]
[1738675848776,4.7003,212.76,212.72,1.0]
[1738675849174,28.01336603,212.78,212.72,1.0]
[1738675849795,28.01336603,212.78,212.7,24.31356603]
[1738675850218,13.53733853,212.77,212.7,15.1324174]
[1738675850510,13.41184853,212.75,212.69,0.03]
[1738675850665,20.0,212.71,212.69,0.03]
[1738675852572,134.8,212.73,212.7,23.31356603]
[1738675852777,134.8,212.73,212.72,23.31356603]
[1738675852978,139.5008,212.73,212.7,1.0]
[1738675853171,162.81436603,212.73,212.66,23.31356603]
[1738675853386,23.31356603,212.71,212.64,24.31356603]
[1738675853583,148.21184853,212.7,212.62,24.31356603]
[1738675853771,23.31356603,212.69,212.62,24.31356603]
[1738675854392,134.8,212.7,212.66,1.0]
[1738675855098,134.8,212.7,212.65,1.0]
[1738675855299,139.5015,212.7,212.65,1.0]
[1738675855680,20.0,212.68,212.64,23.31356603]
[1738675855871,13.41184853,212.68,212.63,1.0]
[1738675856081,13.41184853,212.68,212.62,23.34356603]
[1738675856275,13.41184853,212.68,212.62,0.03]
[1738675856601,13.41184853,212.66,212.62,0.03]
[1738675856785,148.21184853,212.66,212.62,0.03]
[1738675856987,134.8,212.65,212.62,0.03]
[1738675859207,139.5026,212.65,212.62,0.03]
[1738675859906,13.41184853,212.64,212.62,0.03]
[1738675860224,171.65090456,212.63,212.62,0.03]
[1738675860421,171.65090456,212.63,212.58,0.03]
[1738675860422,33.41184853,212.59,212.58,0.03]
[1738675860628,20.0,212.55,212.46,24.31356603]
[1738675860835,43.31356603,212.51,212.46,1.0]
[1738675861005,43.31356603,212.51,212.42,24.31356603]
[1738675861201,23.31356603,212.49,212.42,1.0]
[1738675861427,20.0,212.45,212.42,1.0]
[1738675861623,20.0,212.45,212.4,23.34356603]
[1738675861624,134.8,212.44,212.4,0.03]
[1738675861806,13.41184853,212.42,212.4,0.03]
[1738675862225,134.8,212.43,212.4,0.03]
[1738675862524,134.8,212.43,212.4,23.34356603]
[1738675862703,27.11356603,212.47,212.42,37.98934495]
[1738675862704,3.8,212.47,212.42,37.98934495]
[1738675862895,134.8,212.48,212.44,38.98934495]
[1738675863096,134.8,212.48,212.42,38.98934495]
[1738675863299,177.49574495,212.48,212.4,39.01934495]
[1738675863529,13.41184853,212.47,212.4,38.01934495]
[1738675863722,37.98934495,212.46,212.4,0.03]
[1738675863928,37.98934495,212.46,212.4,1.03]
[1738675864220,13.41184853,212.47,212.4,39.01934495]
[1738675864425,134.8,212.48,212.44,38.98934495]
[1738675864606,134.8,212.51,212.46,1.0]
[1738675864924,37.98934495,212.47,212.4,1.03]
[1738675865111,134.8,212.46,212.4,0.03]
[1738675865511,37.98934495,212.43,212.4,0.03]
[1738675866206,134.8,212.42,212.4,0.03]
[1738675866416,134.8,212.41,212.4,0.03]
[1738675866822,4.7078,212.41,212.4,0.03]
[1738675867613,76.10899348,212.41,212.4,0.03]
[1738675868218,62.69714495,212.41,212.4,0.03]
[1738675869138,76.23448348,212.41,212.4,0.03]
[1738675869634,77.61095348,212.41,212.4,0.0001]
[1738675869812,115.60029843,212.41,212.4,0.0001]
[1738675870207,115.60029843,212.41,212.33,0.03]
[1738675870208,1.50196,212.34,212.33,0.0001]
[1738675870412,1.50196,212.34,212.32,0.03]
[1738675870413,154.67766348,212.33,212.32,0.0001]
[1738675870617,158.51766348,212.33,212.32,0.0001]
[1738675871013,163.22726348,212.33,212.32,0.0001]
[1738675871213,162.97628348,212.33,212.32,0.0001]
[1738675871917,163.35275348,212.33,212.32,0.0001]
[1738675872313,162.97628348,212.33,212.32,0.0001]
[1738675872633,162.85079348,212.33,212.32,0.0001]
[1738675873218,62.69894495,212.33,212.32,0.0001]
[1738675873413,139.5093,212.35,212.32,0.0001]
[1738675873616,20.0,212.33,212.32,0.0001]
[1738675873936,71.40119348,212.33,212.32,0.0001]
[1738675874311,20.0,212.33,212.32,0.0001]
[1738675874541,134.8,212.37,212.33,1.0]
[1738675874744,4.7074,212.43,212.39,1.0]
[1738675874910,134.8,212.43,212.39,1.0]
[1738675875244,37.98934495,212.42,212.37,1.0]
[1738675875409,134.8,212.42,212.39,1.0]
[1738675875812,134.8,212.42,212.37,1.0]
[1738675876024,134.8,212.42,212.35,1.0]
[1738675876232,42.69674495,212.43,212.35,1.0]
[1738675876233,186.20119348,212.41,212.35,1.0]
[1738675876423,134.8,212.42,212.38,1.0]
[1738675876838,172.78934495,212.42,212.36,1.0]
[1738675877142,20.0,212.34,212.32,0.0001]
[1738675877446,148.21184853,212.33,212.32,0.0001]
[1738675877748,13.41184853,212.33,212.32,0.0001]
[1738675878743,37.98934495,212.34,212.32,0.0001]
[1738675879120,4.7096,212.33,212.32,0.0001]
[1738675879528,18.24693853,212.33,212.32,0.0001]
[1738675880414,20.0,212.3,212.29,0.03]
[1738675881627,0.13072148,212.32,212.31,1.0]
[1738675881831,4.7092,212.35,212.31,0.83104141]
[1738675882125,134.8,212.41,212.38,0.83104141]
[1738675882338,11.7673,212.46,212.38,0.83104141]
[1738675882339,4.7075,212.43,212.38,0.83104141]
[1738675882731,4.7075,212.43,212.38,24.21334226]
[1738675882732,20.0,212.42,212.38,24.21334226]
[1738675882964,7.0566,212.49,212.41,23.38230085]
[1738675882965,139.5063,212.48,212.41,23.38230085]
[1738675883270,20.0,212.45,212.43,23.38230085]
[1738675883575,20.0,212.45,212.41,23.38230085]
[1738675883723,134.8,212.48,212.41,23.38230085]
[1738675883923,134.8,212.53,212.47,23.38230085]
[1738675884137,134.8,212.53,212.51,23.38230085]
[1738675884734,134.8,212.53,212.5,37.95307712]
[1738675885050,134.8,212.57,212.52,37.95307712]
[1738675885254,134.8,212.56,212.5,37.95307712]
[1738675885750,134.8,212.56,212.52,37.95307712]
[1738675886138,0.063,212.58,212.54,37.95307712]
[1738675886555,0.063,212.58,212.48,0.25098]
[1738675886556,0.063,212.58,212.56,37.95307712]
[1738675886764,0.063,212.58,212.57,0.50196]
[1738675887335,0.063,212.58,212.57,0.12549]
[1738675887668,0.063,212.63,212.61,0.37647]
[1738675887842,0.063,212.63,212.6,20.0]
[1738675887843,0.063,212.63,212.62,38.32954712]
[1738675888043,0.063,212.63,212.62,38.45503712]
[1738675888858,0.063,212.63,212.58,37.95307712]
[1738675889246,0.063,212.63,212.57,0.12549]
[1738675889454,0.063,212.63,212.58,37.95307712]
[1738675889950,0.063,212.63,212.56,38.07856712]
[1738675890654,0.063,212.63,212.56,37.95307712]
[1738675891468,0.063,212.63,212.6,0.37647]